fUST/lending_fUST_20251012
["ID","MTS","AMOUNT","RATE_DAILY","PERIOD"]
[390931672,1760223649919,-500.0,0.00022583,2]
[390931673,1760223650031,-500.0,0.00022583,2]
[390931674,1760223650092,-500.0,0.00022583,2]
[390931675,1760223650149,-500.0,0.00022583,2]
[390931676,1760223650209,-500.0,0.00022583,2]
[390931677,1760223650270,-231.44,0.00022583,2]
[390931678,1760223650331,-500.0,0.00022583,2]
[390931679,1760223650391,-226.742162,0.00022583,2]
[390931680,1760223650644,187.73,0.00019181,2]
[390931681,1760223650694,375.47,0.00020925,2]
[390931691,1760223694833,-300.0,0.00022482,2]
[390931692,1760223694904,-647.96,0.00022483,2]
[390931693,1760223694987,-647.96,0.00022483,2]
[390931694,1760223695070,-647.96,0.00022483,2]
[390931695,1760223695139,-647.96,0.00022483,2]
[390931696,1760223695210,-647.96,0.00022483,2]
[390931697,1760223695291,-647.96,0.00022483,2]
[390931698,1760223695363,-647.96,0.00022483,2]
[390931699,1760223695737,-647.96,0.00022483,2]
[390931700,1760223695817,-647.96,0.00022483,2]
[390931701,1760223695893,-647.96,0.00022483,2]
[390931702,1760223695990,-647.96,0.00022483,2]
[390931703,1760223696076,-647.96,0.00022483,2]
[390931704,1760223696151,-647.96,0.00022483,2]
[390931705,1760223696236,-647.96,0.00022483,2]
[390931706,1760223696312,-280.61,0.00022483,2]
[390931707,1760223696607,-367.35,0.00022483,2]
[390931708,1760223696693,-647.96,0.00022483,2]
[390931709,1760223696779,-647.96,0.00022483,2]
[390931710,1760223696866,-647.96,0.00022483,2]
[390931711,1760223696955,-647.96,0.00022483,2]
[390931712,1760223697047,-647.96,0.00022483,2]
[390931713,1760223697129,-647.96,0.00022483,2]
[390931714,1760223697206,-647.96,0.00022483,2]
[390931715,1760223697457,-647.96,0.00022483,2]
[390931716,1760223697553,-648.13,0.00022483,2]
[390931717,1760223699302,-241.83,0.00022483,2]
[390931718,1760223699368,-648.13,0.00022483,2]
[390931719,1760223699435,-7407.83,0.00022483,2]
[390931720,1760223699512,-4107.61762817,0.00022483,2]
[390931721,1760223699522,-500.0,0.00022582,2]
[390931722,1760223699532,-500.0,0.00022582,2]
[390931723,1760223699542,-500.0,0.00022582,2]
[390931724,1760223699551,-500.0,0.00022582,2]
[390931725,1760223699560,-500.0,0.00022582,2]
[390931726,1760223699570,-500.0,0.00022582,2]
[390931727,1760223699580,-500.0,0.00022582,2]
[390931728,1760223699589,-500.0,0.00022582,2]
[390931729,1760223699598,-405.92441721,0.00022582,2]
[390931730,1760223699607,-419.21838304,0.00022582,2]
[390931731,1760223699617,-485.62277043,0.00022582,2]
[390931732,1760223699626,-500.0,0.00022582,2]
[390931733,1760223699636,-81.62680115,0.00022582,2]
[390931734,1760223699720,-418.37319885,0.00022582,2]
[390931735,1760223699729,-500.0,0.00022582,2]
[390931736,1760223699738,-500.0,0.00022582,2]
[390931737,1760223699748,-500.0,0.00022582,2]
[390931738,1760223699757,-500.0,0.00022582,2]
[390931739,1760223699766,-500.0,0.00022582,2]
[390931740,1760223699776,-500.0,0.00022582,2]
[390931741,1760223699785,-500.0,0.00022582,2]
[390931742,1760223699795,-567.19,0.00022582,2]
[390931743,1760223699804,-500.0,0.00022582,2]
[390931744,1760223699814,-500.0,0.00022582,2]
[390931745,1760223699823,-500.0,0.00022582,2]
[390931746,1760223699833,-500.0,0.00022582,2]
[390931747,1760223699842,-500.0,0.00022582,2]
[390931748,1760223699852,-500.0,0.00022582,2]
[390931749,1760223699861,-500.0,0.00022582,2]
[390931750,1760223699870,-500.0,0.00022582,2]
[390931751,1760223699880,-500.0,0.00022582,2]
[390931752,1760223699889,-500.0,0.00022582,2]
[390931753,1760223699900,-500.0,0.00022582,2]
[390931754,1760223699911,-14.44680115,0.00022582,2]
[390931755,1760223699988,-485.55319885,0.00022582,2]
[390931756,1760223699998,-500.0,0.00022582,2]
[390931757,1760223700008,-500.0,0.00022582,2]
[390931758,1760223700018,-500.0,0.00022582,2]
[390931759,1760223700028,-500.0,0.00022582,2]
[390931760,1760223700037,-500.0,0.00022582,2]
[390931761,1760223700047,-500.0,0.00022582,2]
[390931762,1760223700056,-500.0,0.00022582,2]
[390931763,1760223700066,-500.0,0.00022582,2]
[390931764,1760223700075,-500.0,0.00022582,2]
[390931765,1760223700085,-171.05069442,0.00022582,2]
[390931766,1760223700094,-501.12122467,0.00022582,2]
[390931767,1760223700105,-500.0,0.00022582,2]
[390931768,1760223700114,-500.0,0.00022582,2]
[390931769,1760223700123,-500.0,0.00022582,2]
[390931770,1760223700132,-500.0,0.00022582,2]
[390931771,1760223700141,-500.0,0.00022582,2]
[390931773,1760223700150,-500.0,0.00022582,2]
[390931774,1760223700159,-500.0,0.00022582,2]
[390931775,1760223700168,-500.0,0.00022582,2]
[390931776,1760223700177,-342.28488206,0.00022582,2]
[390931777,1760223700247,-157.71511794,0.00022582,2]
[390931778,1760223700256,-500.0,0.00022582,2]
[390931779,1760223700267,-500.0,0.00022582,2]
[390931780,1760223700276,-500.0,0.00022582,2]
[390931781,1760223700285,-500.0,0.00022582,2]
[390931782,1760223700294,-269.7646579,0.00022582,2]
[390931783,1760223700303,-500.0,0.00022582,2]
[390931784,1760223700313,-500.0,0.00022582,2]
[390931785,1760223700322,-500.0,0.00022582,2]
[390931786,1760223700332,-500.0,0.00022582,2]
[390931787,1760223700341,-500.0,0.00022582,2]
[390931788,1760223700351,-500.0,0.00022582,2]
[390931789,1760223700360,-500.0,0.00022582,2]
[390931790,1760223700369,-500.0,0.00022583,2]
[390931791,1760223700378,-500.0,0.00022583,2]
[390931792,1760223700387,-500.0,0.00022583,2]
[390931793,1760223700397,-338.56,0.00022583,2]
[390931794,1760223700407,-500.0,0.00022583,2]
[390931795,1760223700416,-500.0,0.00022583,2]
[390931796,1760223700425,-500.0,0.00022583,2]
[390931797,1760223700435,-500.0,0.00022583,2]
[390931798,1760223700444,-233.97022416,0.00022583,2]
[390931799,1760223700634,-510.9,0.00022582,2]
[390931800,1760223700709,-266.02977584,0.00022583,2]
[390931801,1760223700786,-500.0,0.00022583,2]
[390931802,1760223700862,-500.0,0.00022583,2]
[390931803,1760223700936,-500.0,0.00022583,2]
[390931804,1760223701015,-500.0,0.00022583,2]
[390931805,1760223701099,-422.71,0.00022583,2]
[390931806,1760223701175,-1630.24,0.00022583,2]
[390931807,1760223701316,-1630.24,0.00022583,2]
[390931808,1760223701325,-1630.24,0.00022583,2]
[390931809,1760223701335,-1630.24,0.00022583,2]
[390931810,1760223701344,-279.41022416,0.00022583,2]
[390931811,1760223701418,-1350.82977584,0.00022583,2]
[390931812,1760223701427,-1630.24,0.00022583,2]
[390931813,1760223701436,-1630.24,0.00022583,2]
[390931814,1760223701445,-1630.24,0.00022583,2]
[390931815,1760223701454,-1630.24,0.00022583,2]
[390931816,1760223701463,-1630.24,0.00022583,2]
[390931817,1760223701472,-497.98022416,0.00022583,2]
[390931818,1760223701600,-500.0,0.00022582,2]
[390931819,1760223701675,-500.0,0.00022582,2]
[390931820,1760223701746,-500.0,0.00022582,2]
[390931821,1760223701818,-500.0,0.00022582,2]
[390931822,1760223701889,-1132.25977584,0.00022583,2]
[390931823,1760223701964,-1630.24,0.00022583,2]
[390931824,1760223702063,-500.0,0.00022582,2]
[390931825,1760223702135,-1630.24,0.00022583,2]
[390931826,1760223702210,-1630.24,0.00022583,2]
[390931827,1760223702286,-848.81,0.00022583,2]
[390931828,1760223703410,-500.0,0.00022582,2]
[390931829,1760223703419,-60.84022416,0.00022582,2]
[390931830,1760223703482,-439.15977584,0.00022582,2]
[390931831,1760223703491,-35.85067248,0.00022582,2]
[390931832,1760223703553,-464.14932752,0.00022582,2]
[390931833,1760223703561,-35.85067248,0.00022582,2]
[390931834,1760223703624,-464.14932752,0.00022582,2]
[390931835,1760223703633,-235.05,0.00022582,2]
[390931836,1760223703642,-781.43,0.00022583,2]
[390931837,1760223703652,-149.61067248,0.00022583,2]
[390931838,1760223703722,-1480.62932752,0.00022583,2]
[390931839,1760223703732,-149.61067248,0.00022583,2]
[390931840,1760223703803,-1480.62932752,0.00022583,2]
[390931841,1760223703812,-149.61067248,0.00022583,2]
[390931842,1760223728685,206.76,0.00019183,2]
[390931843,1760223728970,-10000.01,0.00022384,2]
[390931844,1760223729106,413.51,0.00020927,2]
[390931845,1760223729293,-10000.01,0.00022384,2]
[390931846,1760223729503,-10000.01,0.00022384,2]
[390931847,1760223729713,-10000.01,0.00022384,2]
[390931848,1760223729939,-10000.01,0.00022384,2]
[390931849,1760223730160,-10000.01,0.00022384,2]
[390931850,1760223730388,-10000.01,0.00022384,2]
[390931851,1760223730709,-10000.01,0.00022384,2]
[390931852,1760223730921,-10000.01,0.00022384,2]
[390931857,1760223763209,-393.36971672,0.00021582,2]
[390931858,1760223765157,-325.70539461,0.00021582,2]
[390931859,1760223767079,-303.99653115,0.00021582,2]
[390931860,1760223768969,-339.83913255,0.00021582,2]
[390931861,1760223772995,-260.16086745,0.00021582,2]
[390931862,1760223775736,-260.16086745,0.00021582,2]
[390931863,1760223777872,-204.12336471,0.00021582,2]
[390931864,1760223778875,-822.05200996,0.00021582,2]
[390931865,1760223794971,-1200.0,0.00022383,2]
[390931866,1760223795040,-300.0,0.00022383,2]
[390931867,1760223802332,160.0,0.00022383,2]
[390931868,1760223808365,224.57,0.00019178,2]
[390931869,1760223808807,449.13,0.00020921,2]
[390931870,1760223838997,5000.0,0.00022383,2]
[390931871,1760223839488,833.543535,0.00013699,2]
[390931872,1760223839715,833.543535,0.00020187,2]
[390931873,1760223850304,500.0,0.00022383,2]
[390931874,1760223850515,500.0,0.00022383,2]
[390931875,1760223852263,500.0,0.00022383,2]
[390931876,1760223852493,500.0,0.00022383,2]
[390931877,1760223852737,500.0,0.00022383,2]
[390931878,1760223852970,500.0,0.00022383,2]
[390931879,1760223861412,332.92293,0.00022383,2]
[390931880,1760223861479,4667.07707,0.00022383,2]
[390931881,1760223864288,-500.0,0.00022383,2]
[390931882,1760223864362,-500.0,0.00022383,2]
[390931883,1760223864433,-500.0,0.00022383,2]
[390931884,1760223864502,-409.39164609,0.00022383,2]
[390931885,1760223864572,-500.0,0.00022383,2]
[390931886,1760223864644,-500.0,0.00022383,2]
[390931887,1760223864717,-500.0,0.00022383,2]
[390931888,1760223864788,-325.93929278,0.00022383,2]
[390931889,1760223864856,-156.68585855,0.00022383,2]
[390931890,1760223864927,-150.0,0.00022383,2]
[390931891,1760223871912,455.82,0.00022374,10]
[390931892,1760223872495,-4043.41293,0.00022384,2]
[390931893,1760223875142,500.0,0.00022383,2]
[390931894,1760223878354,-9500.01,0.00022384,2]
[390931895,1760223883841,660.63,0.00022374,10]
[390931896,1760223884708,299.52640516,0.00022383,2]
[390931897,1760223886392,-4700.47359484,0.00022383,2]
[390931898,1760223888421,221.45,0.00019171,2]
[390931899,1760223888879,377.61281032,0.00020914,2]
[390931900,1760223888944,65.29718968,0.00020914,2]
[390931901,1760223890625,500.0,0.00022383,2]
[390931902,1760223890860,500.0,0.00022383,2]
[390931903,1760223891127,500.0,0.00022383,2]
[390931904,1760223891389,500.0,0.00022383,2]
[390931905,1760223891644,500.0,0.00022383,2]
[390931906,1760223891901,381.12,0.00022383,2]
[390931907,1760223901210,300.0,0.00022383,2]
[390931908,1760223901858,500.0,0.00022383,2]
[390931909,1760223901943,300.0,0.00022383,2]
[390931910,1760223902072,300.0,0.00022383,2]
[390931911,1760223902142,300.0,0.00022383,2]
[390931912,1760223902217,500.0,0.00022383,2]
[390931913,1760223902518,500.0,0.00022383,2]
[390931914,1760223902746,-2794.37359484,0.00022384,2]
[390931915,1760223902845,500.0,0.00022383,2]
[390931916,1760223902949,-9500.01,0.00022384,2]
[390931917,1760223903027,500.0,0.00022383,2]
[390931918,1760223903200,-9500.01,0.00022384,2]
[390931919,1760223903303,500.0,0.00022383,2]
[390931920,1760223903471,-9500.01,0.00022384,2]
[390931921,1760223903631,500.0,0.00022383,2]
[390931922,1760223903744,-9500.01,0.00022384,2]
[390931923,1760223903910,500.0,0.00022383,2]
[390931924,1760223904052,-9500.01,0.00022384,2]
[390931925,1760223904259,500.0,0.00022383,2]
[390931926,1760223904368,-9500.01,0.00022384,2]
[390931927,1760223904448,300.0,0.00022383,2]
[390931928,1760223904554,500.0,0.00022383,2]
[390931929,1760223904666,-9200.01,0.00022384,2]
[390931930,1760223904881,421.33,0.00022383,2]
[390931931,1760223905013,-9578.68,0.00022384,2]
[390931932,1760223943862,151.0,0.00017,2]
[390931933,1760223968186,278.71,0.00018369,2]
[390931934,1760223968597,557.42,0.00019244,2]
[390931935,1760223969053,836.12,0.00020119,2]
[390931936,1760223969471,1114.83,0.00020994,2]
[390931937,1760223973670,-268.37663529,0.00021868,2]
[390931938,1760223978723,300.0,0.00017,2]
[390931939,1760223985000,-1125.16336471,0.00021868,2]
[390931940,1760223989872,300.0,0.00017,2]
[390931941,1760224001363,300.0,0.00017,2]
[390931942,1760224012368,300.0,0.00017,2]
[390931943,1760224046589,441.3289675,0.00021383,2]
[390931944,1760224046664,232.76,0.00018377,2]
[390931945,1760224047096,465.52,0.00019252,2]
[390931946,1760224047506,698.29,0.00020127,2]
[390931947,1760224047930,931.05,0.00021002,2]
[390931948,1760224055349,-1163.81,0.00021877,2]
[390931949,1760224079863,252.36,0.00015225,2]
[390931950,1760224126209,196.08,0.00018309,2]
[390931951,1760224126634,392.17,0.00019181,2]
[390931952,1760224127098,588.25,0.00020053,2]
[390931953,1760224127550,784.33,0.00020925,2]
[390931954,1760224136607,-156.76143765,0.00021797,2]
[390931955,1760224152122,156.76143765,0.00021698,2]
[390931956,1760224153248,-162.62681016,0.00021797,2]
[390931957,1760224157449,-234.93634612,0.00021797,2]
[390931958,1760224159792,-343.47634642,0.00021797,2]
[390931959,1760224174340,741.0395027,0.00021698,2]
[390931967,1760224196542,5000.0,0.00021698,2]
[390931971,1760224204834,159.7,0.0001831,2]
[390931972,1760224205254,319.4,0.00019182,2]
[390931973,1760224205667,479.1,0.00020054,2]
[390931974,1760224206084,638.8,0.00020926,2]
[390931975,1760224213591,-166.95068232,0.00021798,2]
[390931976,1760224215737,-263.35740281,0.00021798,2]
[390931977,1760224217458,-180.54889743,0.00021798,2]
[390931978,1760224219425,292.01905965,0.00021698,2]
[390931979,1760224219490,365.33640651,0.00021698,2]
[390931980,1760224220985,-187.64301744,0.00021798,2]
[390932036,1760224232631,-1126.28450278,0.00022148,2]
[390932282,1760224236174,339.57276309,0.00030407,60]
[390932309,1760224238486,-3873.71549722,0.00022148,2]
[390932310,1760224238495,-278.9894094,0.00022283,2]
[390932311,1760224238506,-300.0,0.00022371,2]
[390932312,1760224238515,-1200.0,0.00022371,2]
[390932314,1760224238524,-1200.0,0.00022372,2]
[390932315,1760224238534,-300.0,0.00022372,2]
[390932316,1760224238543,-300.0,0.00022372,2]
[390932317,1760224238553,-300.0,0.00022372,2]
[390932318,1760224238562,-300.0,0.00022372,2]
[390932319,1760224238571,-500.0,0.00022373,2]
[390932320,1760224238580,-500.0,0.00022373,2]
[390932321,1760224238590,-500.0,0.00022373,2]
[390932322,1760224238599,-500.0,0.00022373,2]
[390932323,1760224238608,-543.65,0.00022373,2]
[390932324,1760224238618,-500.0,0.00022373,2]
[390932325,1760224238627,-504.1325774,0.00022373,2]
[390932326,1760224238637,-3559.37666026,0.00022373,2]
[390932327,1760224238654,-323.97,0.00022373,3]
[390932328,1760224238665,-344.76576823,0.00022373,2]
[390932329,1760224238675,-161.99,0.00022373,3]
[390932330,1760224238685,-485.98,0.00022373,3]
[390932331,1760224238694,-193.22,0.00022373,10]
[390932332,1760224238704,-257.28222798,0.00022382,2]
[390932333,1760224238715,-378.82129401,0.00022382,2]
[390932334,1760224238737,-500.0,0.00022382,2]
[390932335,1760224238746,-486.06054914,0.00022382,2]
[390932336,1760224238756,-1466.82,0.00022382,2]
[390932337,1760224238767,-1466.82,0.00022382,2]
[390932338,1760224238776,-1466.82,0.00022382,2]
[390932339,1760224238785,-1466.82,0.00022382,2]
[390932340,1760224238795,-1466.82,0.00022382,2]
[390932341,1760224238804,-1466.82,0.00022382,2]
[390932342,1760224238813,-1466.82,0.00022382,2]
[390932343,1760224238823,-1466.82,0.00022382,2]
[390932344,1760224238832,-1466.82,0.00022382,2]
[390932345,1760224238846,-1466.82,0.00022382,2]
[390932346,1760224238856,-1466.82,0.00022382,2]
[390932347,1760224238865,-1466.82,0.00022382,2]
[390932348,1760224238874,-1466.82,0.00022382,2]
[390932349,1760224238884,-1466.82,0.00022382,2]
[390932350,1760224238893,-1466.82,0.00022382,2]
[390932351,1760224238903,-1466.82,0.00022382,2]
[390932352,1760224238912,-1466.82,0.00022382,2]
[390932353,1760224238922,-1466.82,0.00022382,2]
[390932354,1760224238931,-1466.82,0.00022382,2]
[390932355,1760224238940,-1466.82,0.00022382,2]
[390932356,1760224238951,-1466.82,0.00022382,2]
[390932357,1760224238960,-1466.82,0.00022382,2]
[390932358,1760224238970,-1466.82,0.00022382,2]
[390932359,1760224238979,-1466.91570537,0.00022382,2]
[390932360,1760224238989,-500.0,0.00022382,2]
[390932361,1760224238998,-500.0,0.00022382,2]
[390932363,1760224239007,-500.0,0.00022382,2]
[390932365,1760224239016,-500.0,0.00022382,2]
[390932367,1760224239026,-500.0,0.00022382,2]
[390932369,1760224239035,-500.0,0.00022382,2]
[390932371,1760224239045,-500.0,0.00022382,2]
[390932373,1760224239054,-500.0,0.00022382,2]
[390932375,1760224239064,-500.0,0.00022382,2]
[390932377,1760224239073,-500.0,0.00022382,2]
[390932379,1760224239082,-500.0,0.00022382,2]
[390932381,1760224239092,-500.0,0.00022382,2]
[390932383,1760224239101,-500.0,0.00022382,2]
[390932384,1760224239110,-500.0,0.00022382,2]
[390932385,1760224239119,-500.0,0.00022382,2]
[390932386,1760224239129,-503.24219901,0.00022382,2]
[390932387,1760224239139,-500.0,0.00022382,2]
[390932388,1760224239148,-500.0,0.00022382,2]
[390932390,1760224239157,-500.0,0.00022382,2]
[390932392,1760224239167,-268.62539686,0.00022382,2]
[390932393,1760224239175,-500.0,0.00022382,2]
[390932394,1760224239185,-500.0,0.00022382,2]
[390932395,1760224239195,-500.0,0.00022382,2]
[390932396,1760224239204,-500.0,0.00022382,2]
[390932397,1760224239213,-500.0,0.00022382,2]
[390932398,1760224239223,-500.0,0.00022383,2]
[390932399,1760224239232,-227.17764941,0.00022383,2]
[390932400,1760224239241,-500.0,0.00022383,2]
[390932401,1760224239250,-500.0,0.00022383,2]
[390932402,1760224239259,-500.0,0.00022383,2]
[390932403,1760224239268,-500.0,0.00022383,2]
[390932404,1760224239278,-500.0,0.00022383,2]
[390932405,1760224239287,-500.0,0.00022383,2]
[390932406,1760224239296,-500.0,0.00022383,2]
[390932407,1760224239306,-500.0,0.00022383,2]
[390932408,1760224239315,-500.0,0.00022383,2]
[390932409,1760224239325,-500.0,0.00022383,2]
[390932410,1760224239335,-222.78886016,0.00022383,2]
[390932411,1760224239348,-500.0,0.00022383,2]
[390932412,1760224239358,-500.0,0.00022383,2]
[390932413,1760224239367,-500.0,0.00022383,2]
[390932414,1760224239377,-500.0,0.00022383,2]
[390932415,1760224239388,-500.0,0.00022383,2]
[390932416,1760224239398,-500.0,0.00022383,2]
[390932417,1760224239408,-500.0,0.00022383,2]
[390932418,1760224239417,-3744.58,0.00022383,2]
[390932419,1760224239438,-3744.58,0.00022383,2]
[390932420,1760224239449,-3744.58,0.00022383,2]
[390932421,1760224239459,-3744.58,0.00022383,2]
[390932422,1760224239469,-3744.58,0.00022383,2]
[390932423,1760224239478,-3744.58,0.00022383,2]
[390932424,1760224239488,-3744.58,0.00022383,2]
[390932425,1760224239497,-3744.58,0.00022383,2]
[390932426,1760224239507,-3744.58,0.00022383,2]
[390932427,1760224239518,-3744.58,0.00022383,2]
[390932428,1760224239529,-3744.58,0.00022383,2]
[390932429,1760224239539,-3744.58,0.00022383,2]
[390932430,1760224239548,-3744.58,0.00022383,2]
[390932431,1760224239558,-3744.58,0.00022383,2]
[390932432,1760224239568,-3744.58,0.00022383,2]
[390932433,1760224239578,-3744.58,0.00022383,2]
[390932434,1760224239588,-3744.58,0.00022383,2]
[390932435,1760224239597,-3744.58,0.00022383,2]
[390932436,1760224239607,-3744.58,0.00022383,2]
[390932437,1760224239617,-3744.58,0.00022383,2]
[390932438,1760224239626,-3744.58,0.00022383,2]
[390932439,1760224239637,-3744.58,0.00022383,2]
[390932440,1760224239646,-3744.58,0.00022383,2]
[390932441,1760224239656,-3744.6732768,0.00022383,2]
[390932442,1760224239666,-500.0,0.00022383,2]
[390932443,1760224239675,-500.0,0.00022383,2]
[390932444,1760224239684,-500.0,0.00022383,2]
[390932445,1760224239693,-877.13,0.00022383,2]
[390932446,1760224239703,-877.13,0.00022383,2]
[390932447,1760224239713,-877.13,0.00022383,2]
[390932448,1760224239723,-2522.16,0.00022383,2]
[390932449,1760224239733,-877.13,0.00022383,2]
[390932450,1760224239742,-2522.16,0.00022383,2]
[390932451,1760224239752,-877.13,0.00022383,2]
[390932452,1760224239762,-2522.16,0.00022383,2]
[390932453,1760224239772,-877.13,0.00022383,2]
[390932454,1760224239782,-2522.16,0.00022383,2]
[390932455,1760224239792,-877.13,0.00022383,2]
[390932456,1760224239801,-2522.16,0.00022383,2]
[390932457,1760224239811,-877.13,0.00022383,2]
[390932458,1760224239820,-2522.16,0.00022383,2]
[390932459,1760224239830,-877.13,0.00022383,2]
[390932460,1760224239839,-877.13,0.00022383,2]
[390932461,1760224239850,-2522.16,0.00022383,2]
[390932462,1760224239859,-877.13,0.00022383,2]
[390932463,1760224239869,-2522.16,0.00022383,2]
[390932464,1760224239878,-877.13,0.00022383,2]
[390932465,1760224239894,-2522.16,0.00022383,2]
[390932466,1760224239905,-877.13,0.00022383,2]
[390932467,1760224239914,-2522.16,0.00022383,2]
[390932468,1760224239923,-877.13,0.00022383,2]
[390932469,1760224239933,-2522.16,0.00022383,2]
[390932470,1760224239942,-2522.16,0.00022383,2]
[390932471,1760224239952,-2522.16,0.00022383,2]
[390932472,1760224239962,-877.13,0.00022383,2]
[390932473,1760224239972,-2522.16,0.00022383,2]
[390932474,1760224239981,-877.13,0.00022383,2]
[390932475,1760224239991,-2522.16,0.00022383,2]
[390932476,1760224240000,-877.13,0.00022383,2]
[390932477,1760224240009,-2522.16,0.00022383,2]
[390932478,1760224240019,-877.13,0.00022383,2]
[390932479,1760224240028,-877.13,0.00022383,2]
[390932480,1760224240038,-2522.16,0.00022383,2]
[390932481,1760224240047,-877.13,0.00022383,2]
[390932482,1760224240057,-2522.16,0.00022383,2]
[390932483,1760224240066,-877.13,0.00022383,2]
[390932484,1760224240075,-2522.16,0.00022383,2]
[390932486,1760224240085,-2522.16,0.00022383,2]
[390932487,1760224240098,-877.13,0.00022383,2]
[390932488,1760224240109,-2522.16,0.00022383,2]
[390932489,1760224240118,-2522.16,0.00022383,2]
[390932490,1760224240127,-877.13,0.00022383,2]
[390932491,1760224240136,-877.3,0.00022383,2]
[390932492,1760224240146,-2522.16,0.00022383,2]
[390932493,1760224240155,-2522.2986517,0.00022383,2]
[390932494,1760224240164,-500.0,0.00022383,2]
[390932495,1760224240173,-500.0,0.00022383,2]
[390932496,1760224240183,-500.0,0.00022383,2]
[390932497,1760224240193,-500.0,0.00022383,2]
[390932498,1760224240203,-500.0,0.00022383,2]
[390932499,1760224240213,-500.0,0.00022383,2]
[390932500,1760224240224,-500.0,0.00022383,2]
[390932501,1760224240234,-500.0,0.00022383,2]
[390932502,1760224240245,-373.29,0.00022383,2]
[390932503,1760224240255,-500.0,0.00022383,2]
[390932504,1760224240265,-500.0,0.00022383,2]
[390932505,1760224240275,-500.0,0.00022383,2]
[390932506,1760224240285,-500.0,0.00022383,2]
[390932508,1760224240295,-500.0,0.00022383,2]
[390932510,1760224240305,-500.0,0.00022383,2]
[390932511,1760224240316,-500.0,0.00022383,2]
[390932512,1760224240325,-500.0,0.00022383,2]
[390932513,1760224240335,-500.0,0.00022383,2]
[390932514,1760224240347,-500.0,0.00022383,2]
[390932515,1760224240361,-252.91,0.00022383,2]
[390932516,1760224240371,-500.0,0.00022383,2]
[390932517,1760224240381,-500.0,0.00022383,2]
[390932519,1760224240392,-500.0,0.00022383,2]
[390932521,1760224240403,-500.0,0.00022383,2]
[390932523,1760224240412,-500.0,0.00022383,2]
[390932524,1760224240423,-532.2,0.00022383,2]
[390932525,1760224240437,-500.0,0.00022383,2]
[390932526,1760224240449,-500.0,0.00022383,2]
[390932527,1760224240466,-500.0,0.00022383,2]
[390932528,1760224240476,-500.0,0.00022383,2]
[390932529,1760224240487,-500.0,0.00022383,2]
[390932530,1760224240497,-500.0,0.00022383,2]
[390932531,1760224240507,-500.0,0.00022383,2]
[390932532,1760224240518,-500.0,0.00022383,2]
[390932533,1760224240531,-500.0,0.00022383,2]
[390932534,1760224240541,-500.0,0.00022383,2]
[390932535,1760224240551,-500.0,0.00022383,2]
[390932536,1760224240560,-500.0,0.00022383,2]
[390932537,1760224240570,-500.0,0.00022383,2]
[390932538,1760224240580,-500.0,0.00022383,2]
[390932539,1760224240590,-500.0,0.00022383,2]
[390932540,1760224240600,-500.0,0.00022383,2]
[390932541,1760224240610,-500.0,0.00022383,2]